fUST/lending_fUST_20241001
["ID","MTS","AMOUNT","RATE_DAILY","PERIOD"]
[339618722,1727751039030,-1600.0,0.000155,2]
[339618723,1727751039040,-153.3341897,0.00015678,2]
[339618724,1727751039050,-169.425636,0.00015755,2]
[339618725,1727751039060,-3068.61181063,0.00016,2]
[339618726,1727751039071,-153.0,0.00016038,2]
[339618727,1727751039081,-153.0,0.00016038,2]
[339618728,1727751039092,-153.0,0.00016038,2]
[339618729,1727751039101,-153.0,0.00016038,2]
[339618730,1727751039111,-153.0,0.00016038,2]
[339618731,1727751039121,-153.0,0.00016038,2]
[339618732,1727751039130,-153.0,0.00016038,2]
[339618733,1727751039140,-153.893867,0.00016038,2]
[339618734,1727751039150,-153.0,0.00016038,2]
[339618735,1727751039161,-367.3362101,0.00016038,2]
[339618736,1727751039171,-1465.68879583,0.00016318,2]
[339618737,1727751039182,-153.0,0.000164,2]
[339618738,1727751039191,-906.22263144,0.00016408,2]
[339618739,1727751039201,-2365.51417977,0.00016408,2]
[339618740,1727751039210,-196.05123624,0.00016416,2]
[339618741,1727751039221,-8.61168794,0.00016416,2]
[339618742,1727751039234,-411.38831206,0.00016416,2]
[339618743,1727751039243,-150.80027866,0.00016418,2]
[339618744,1727751039254,-152.112788,0.00016418,2]
[339618745,1727751039264,-207.335042,0.00016418,2]
[339618746,1727751039273,-152.48334,0.00016418,2]
[339618747,1727751039284,-207.335042,0.00016418,2]
[339618748,1727751039295,-151.0,0.00016418,2]
[339618749,1727751039305,-151.0,0.00016418,2]
[339618750,1727751039315,-151.0,0.00016418,2]
[339618751,1727751039324,-151.384906,0.00016418,2]
[339618752,1727751039335,-151.0,0.00016418,2]
[339618753,1727751039345,-151.0,0.00016418,2]
[339618754,1727751039356,-151.0,0.00016418,2]
[339618755,1727751039366,-151.0,0.00016418,2]
[339618756,1727751039376,-151.0,0.00016418,2]
[339618757,1727751039386,-151.886498,0.00016418,2]
[339618758,1727751039396,-151.0,0.00016418,2]
[339618759,1727751039406,-151.0,0.00016418,2]
[339618760,1727751039415,-151.0,0.00016418,2]
[339618761,1727751039426,-151.0,0.00016418,2]
[339618762,1727751039435,-151.0,0.00016418,2]
[339618763,1727751039448,-151.0,0.00016418,2]
[339618764,1727751039457,-151.0,0.00016418,2]
[339618765,1727751039467,-151.0,0.00016418,2]
[339618766,1727751039477,-151.0,0.00016418,2]
[339618767,1727751039487,-2114.51947336,0.00016418,2]
[339618768,1727751039497,-5519.53308613,0.00016418,2]
[339618769,1727751039507,-697.68,0.00016427,2]
[339618770,1727751039518,-207.335042,0.00016428,2]
[339618771,1727751039528,-207.335042,0.00016428,2]
[339618772,1727751039541,-26.85114979,0.00016428,2]
[339618904,1727752240044,-392.01043103,0.000151,2]
[339618946,1727752246379,-33.40956897,0.000151,2]
[339618947,1727752246389,-485.94219584,0.00016338,2]
[339619019,1727753432179,-163.0,0.000139,2]
[339619021,1727753432189,-266.05056007,0.00014114,2]
[339619023,1727753432199,-300.0,0.0001413,2]
[339619025,1727753432208,-300.0,0.0001413,2]
[339619027,1727753432219,-24900.0,0.00014131,2]
[339619029,1727753432229,-163.0,0.0001422,2]
[339619031,1727753432238,-872.789077,0.00014328,2]
[339619033,1727753432248,-163.0,0.0001454,2]
[339619035,1727753432258,-872.789077,0.00015013,2]
[339619038,1727753432268,-382.87,0.000154,2]
[339619040,1727753432278,-420.0,0.00015478,2]
[339619042,1727753432288,-163.0,0.000155,2]
[339619044,1727753432298,-420.0,0.00015543,2]
[339619046,1727753432307,-163.46368728,0.00015698,2]
[339619048,1727753432316,-872.789077,0.00015698,2]
[339619049,1727753432326,-1849.57566129,0.000159,2]
[339619050,1727753432335,-500.0,0.00016,2]
[339619051,1727753432345,-500.0,0.00016,2]
[339619052,1727753432355,-500.0,0.00016,2]
[339619053,1727753432364,-500.0,0.00016,2]
[339619054,1727753432374,-501.0,0.00016,2]
[339619055,1727753432384,-7067.94404438,0.00016036,2]
[339619056,1727753432393,-213.0991269,0.00016038,2]
[339619057,1727753432403,-1076.4448005,0.00016274,2]
[339619058,1727753432412,-151.0,0.00016274,2]
[339619059,1727753432421,-1000.0,0.0001632,2]
[339619060,1727753432431,-152.291974,0.0001633,2]
[339619061,1727753432440,-151.0,0.0001633,2]
[339619062,1727753432450,-151.0,0.0001633,2]
[339619063,1727753432459,-153.063387,0.0001633,2]
[339619064,1727753432468,-151.0,0.0001633,2]
[339619065,1727753432477,-151.0,0.0001633,2]
[339619066,1727753432487,-151.0,0.0001633,2]
[339619067,1727753432496,-151.0,0.0001633,2]
[339619069,1727753432505,-164.525476,0.0001633,2]
[339619071,1727753432515,-164.525476,0.0001633,2]
[339619073,1727753432527,-151.0,0.0001633,2]
[339619075,1727753432536,-937.644161,0.0001633,2]
[339619077,1727753432545,-937.644161,0.0001633,2]
[339619079,1727753432554,-151.0,0.0001633,2]
[339619081,1727753432564,-151.0,0.0001633,2]
[339619083,1727753432573,-1055.0728816,0.0001633,2]
[339619085,1727753432582,-237.452974,0.0001633,2]
[339619087,1727753432591,-151.0,0.0001633,2]
[339619089,1727753432601,-151.0,0.0001633,2]
[339619091,1727753432611,-151.0,0.0001633,2]
[339619093,1727753432620,-313.386479,0.00016338,2]
[339619095,1727753432629,-313.386479,0.00016338,2]
[339619097,1727753432638,-197.904194,0.00016338,2]
[339619099,1727753432648,-151.0,0.00016338,2]
[339619101,1727753432657,-151.0,0.00016338,2]
[339619103,1727753432666,-151.0,0.00016338,2]
[339619105,1727753432675,-151.0,0.00016338,2]
[339619107,1727753432684,-151.0,0.00016338,2]
[339619109,1727753432693,-151.0,0.00016338,2]
[339619111,1727753432702,-151.0,0.00016338,2]
[339619113,1727753432711,-151.0,0.00016338,2]
[339619115,1727753432721,-151.0,0.00016338,2]
[339619117,1727753432730,-153.74853,0.00016338,2]
[339619119,1727753432739,-151.0,0.00016338,2]
[339619121,1727753432748,-151.0,0.00016338,2]
[339619123,1727753432758,-151.0,0.00016338,2]
[339619125,1727753432768,-188.734913,0.00016338,2]
[339619127,1727753432778,-151.0,0.00016338,2]
[339619129,1727753432789,-151.0,0.00016338,2]
[339619131,1727753432800,-151.0,0.00016338,2]
[339619133,1727753432809,-151.0,0.00016338,2]
[339619135,1727753432818,-151.0,0.00016338,2]
[339619137,1727753432828,-151.0,0.00016338,2]
[339619139,1727753432837,-151.0,0.00016338,2]
[339619141,1727753432846,-151.0,0.00016338,2]
[339619143,1727753432856,-151.0,0.00016338,2]
[339619145,1727753432866,-164.525476,0.00016338,2]
[339619147,1727753432876,-151.0,0.00016338,2]
[339619149,1727753432885,-164.525476,0.00016338,2]
[339619169,1727753433077,-164.525476,0.00016338,2]
[339619172,1727753433089,-164.525476,0.00016338,2]
[339619174,1727753433099,-164.525476,0.00016338,2]
[339619176,1727753433109,-164.525476,0.00016338,2]
[339619178,1727753433121,-151.0,0.00016338,2]
[339619180,1727753433131,-151.0,0.00016338,2]
[339619182,1727753433140,-151.0,0.00016338,2]
[339619184,1727753433150,-151.0,0.00016338,2]
[339619186,1727753433160,-678.89722195,0.00016338,2]
[339619189,1727753433175,-258.74693905,0.00016338,2]
[339619191,1727753433185,-937.644161,0.00016338,2]
[339619193,1727753433195,-937.644161,0.00016338,2]
[339619195,1727753433204,-937.644161,0.00016338,2]
[339619197,1727753433215,-937.644161,0.00016338,2]
[339619199,1727753433225,-937.644161,0.00016338,2]
[339619201,1727753433234,-160.51225344,0.00016338,2]
[339619290,1727753438299,-777.13190756,0.00016338,2]
[339619292,1727753438309,-937.644161,0.00016338,2]
[339619293,1727753438319,-289.53594,0.00016338,2]
[339619294,1727753438327,-137.68799144,0.00016338,2]
[339619296,1727753438339,-13.31200856,0.00016338,2]
[339619298,1727753438349,-151.0,0.00016338,2]
[339619300,1727753438358,-151.0,0.00016338,2]
[339619301,1727753438367,-235.258647,0.00016338,2]
[339619302,1727753438376,-151.0,0.00016338,2]
[339619303,1727753438385,-151.0,0.00016338,2]
[339619304,1727753438394,-151.0,0.00016338,2]
[339619305,1727753438403,-151.0,0.00016338,2]
[339619306,1727753438412,-151.0,0.00016338,2]
[339619307,1727753438421,-151.0,0.00016338,2]
[339619308,1727753438430,-151.0,0.00016338,2]
[339619309,1727753438439,-151.0,0.00016338,2]
[339619310,1727753438449,-151.0,0.00016338,2]
[339619311,1727753438459,-151.0,0.00016338,2]
[339619312,1727753438468,-275.560779,0.00016338,2]
[339619313,1727753438478,-3000.0,0.00016338,2]
[339619314,1727753438487,-14351.86608163,0.00016338,2]
[339619329,1727753443391,-3000.0,0.00016338,2]
[339619331,1727753443403,-282.35782242,0.00016338,2]
[339619478,1727754632288,-300.0,0.00010958,2]
[339619481,1727754632299,-310.06,0.00010959,2]
[339619483,1727754632309,-271.65084611,0.00010959,2]
[339619669,1727754638311,-76.83915389,0.00010959,2]
[339619672,1727754638327,-290.41,0.00010959,2]
[339619674,1727754638341,-242.01,0.00010959,2]
[339619676,1727754638355,-201.67,0.00010959,2]
[339619679,1727754638366,-168.06,0.00010959,2]
[339619681,1727754638377,-525.9138505,0.00010959,2]
[339619691,1727754638461,-314.4161495,0.00010959,2]
[339619693,1727754638473,-24900.0,0.00011014,2]
[339619695,1727754638487,-159.388315,0.00011591,2]
[339619698,1727754638499,-159.388315,0.00011624,2]
[339619700,1727754638512,-159.388315,0.00011658,2]
[339619703,1727754638523,-159.388315,0.00011691,2]
[339619705,1727754638536,-159.388315,0.00011725,2]
[339619707,1727754638549,-3164.25337742,0.00011758,2]
[339619710,1727754638563,-563.21078133,0.00011758,2]
[339619712,1727754638576,-159.388315,0.00011758,2]
[339619714,1727754638587,-159.388315,0.00011792,2]
[339619717,1727754638598,-159.388315,0.00011826,2]
[339619719,1727754638609,-159.388315,0.00011859,2]
[339619721,1727754638620,-159.388315,0.00011893,2]
[339619723,1727754638633,-159.388315,0.00011926,2]
[339619726,1727754638646,-159.388315,0.0001196,2]
[339619728,1727754638658,-159.388315,0.00011993,2]
[339619730,1727754638669,-159.388315,0.00012027,2]
[339619733,1727754638682,-300.0,0.00012054,2]
[339619735,1727754638692,-159.388315,0.00012061,2]
[339619737,1727754638703,-159.388315,0.00012094,2]
[339619739,1727754638715,-159.388315,0.00012128,2]
[339619741,1727754638727,-159.388315,0.00012161,2]
[339619744,1727754638740,-159.388315,0.00012195,2]
[339619746,1727754638759,-16048.631327,0.0001299,2]
[339619748,1727754638773,-49061.9758227,0.0001299,2]
[339619750,1727754638786,-28599.37387755,0.00013,2]
[339619808,1727754640247,-37880.62612145,0.00013,2]
[339619810,1727754640258,-500.0,0.00013,2]
[339619812,1727754640268,-500.64656631,0.00013,2]
[339619814,1727754640283,-500.69619032,0.00013,2]
[339619817,1727754640294,-218.465535,0.00013,2]
[339619819,1727754640307,-151.0,0.00013,2]
[339619821,1727754640319,-353.646602,0.00013,2]
[339619823,1727754640330,-151.0,0.00013,2]
[339619825,1727754640341,-353.646602,0.00013,2]
[339619828,1727754640353,-151.0,0.00013,2]
[339619830,1727754640364,-153.201995,0.00013,2]
[339619832,1727754640375,-151.0,0.00013,2]
[339619834,1727754640388,-153.201995,0.00013,2]
[339619836,1727754640399,-151.0,0.00013,2]
[339619838,1727754640411,-2821.010515,0.00013,2]
[339619841,1727754640422,-2821.010515,0.00013,2]
[339619843,1727754640433,-501.24656699,0.00013137,2]
[339619845,1727754640444,-500.0,0.00013167,2]
[339619847,1727754640455,-153.023518,0.00013274,2]
[339619849,1727754640467,-353.646602,0.00013274,2]
[339619851,1727754640479,-151.0,0.00013274,2]
[339619853,1727754640491,-353.646602,0.00013274,2]
[339619856,1727754640502,-151.0,0.00013274,2]
[339619858,1727754640513,-153.201995,0.00013274,2]
[339619860,1727754640525,-151.0,0.00013274,2]
[339619862,1727754640536,-153.201995,0.00013274,2]
[339619864,1727754640547,-151.0,0.00013274,2]
[339619866,1727754640558,-2821.010515,0.00013274,2]
[339619868,1727754640568,-2821.010515,0.00013274,2]
[339619871,1727754640580,-1000.0,0.00013304,2]
[339619873,1727754640591,-1500.0,0.00013441,2]
[339619875,1727754640603,-151.0,0.00013471,2]
[339619877,1727754640614,-151.0,0.00013471,2]
[339619879,1727754640625,-151.0,0.00013471,2]
[339619881,1727754640636,-151.0,0.00013471,2]
[339619882,1727754640647,-151.0,0.00013471,2]
[339619883,1727754640659,-151.0,0.00013471,2]
[339619884,1727754640669,-282.047831,0.00013471,2]
[339619885,1727754640680,-282.047831,0.00013471,2]
[339619886,1727754640691,-151.0,0.00013471,2]
[339619887,1727754640703,-203.055143,0.00013471,2]
[339619888,1727754640715,-284.400948,0.00013471,2]
[339619889,1727754640727,-152.113871,0.00013471,2]
[339619890,1727754640741,-574.682894,0.00013471,2]
[339619891,1727754640754,-574.682894,0.00013471,2]
[339619892,1727754640767,-253.251594,0.00013471,2]
[339619893,1727754640780,-253.251594,0.00013471,2]
[339619894,1727754640791,-151.0,0.00013471,2]
[339619895,1727754640802,-353.646602,0.00013471,2]
[339619896,1727754640813,-152.448968,0.00013471,2]
[339619897,1727754640825,-353.646602,0.00013471,2]
[339619898,1727754640836,-151.0,0.00013471,2]
[339619899,1727754640847,-153.201995,0.00013471,2]
[339619900,1727754640858,-151.0,0.00013471,2]
[339619901,1727754640870,-153.201995,0.00013471,2]
[339619902,1727754640881,-2821.010515,0.00013471,2]
[339619903,1727754640892,-2821.010515,0.00013471,2]
[339619904,1727754640903,-2000.0,0.00013578,2]
[339619905,1727754640914,-166.6666674,0.00013699,2]
[339619906,1727754640927,-580.15948,0.00013699,2]
[339619907,1727754640939,-151.0,0.00013699,2]
[339619908,1727754640951,-1144.73415823,0.00013715,2]
[339619909,1727754640964,-154.0,0.000139,2]
[339619910,1727754640976,-154.0,0.0001414,2]
[339619911,1727754640988,-154.0,0.0001438,2]
[339619912,1727754641000,-580.15948,0.00014384,2]
[339619913,1727754641012,-154.0,0.0001462,2]
[339619914,1727754641023,-353.646602,0.00015068,2]
[339619915,1727754641035,-353.646602,0.00015068,2]
[339619916,1727754641047,-242.481396,0.00015068,2]
[339619917,1727754641059,-153.201995,0.00015068,2]
[339619918,1727754641070,-151.0,0.00015068,2]
[339619919,1727754641082,-153.201995,0.00015068,2]
[339619920,1727754641094,-2821.010515,0.00015068,2]
[339619921,1727754641105,-2821.010515,0.00015068,2]
[339619922,1727754641116,-580.15948,0.00015068,2]
[339619923,1727754641127,-154.0,0.0001534,2]
[339619924,1727754641138,-344.59,0.000155,2]
[339619925,1727754641149,-211.35513414,0.00015653,2]
[339619926,1727754641161,-202.646764,0.00015753,2]
[339619927,1727754641172,-151.0,0.00015753,2]
[339619928,1727754641183,-151.0,0.00015753,2]
[339619929,1727754641195,-151.0,0.00015753,2]
[339619930,1727754641205,-151.0,0.00015753,2]
[339619931,1727754641216,-151.0,0.00015753,2]
[339619932,1727754641229,-282.047831,0.00015753,2]
[339619933,1727754641241,-282.047831,0.00015753,2]
[339619934,1727754641252,-151.0,0.00015753,2]
[339619935,1727754641263,-154.954568,0.00015753,2]
[339619936,1727754641275,-574.682894,0.00015753,2]
[339619937,1727754641286,-574.682894,0.00015753,2]
[339619938,1727754641298,-574.682894,0.00015753,2]
[339619939,1727754641310,-574.682894,0.00015753,2]
[339619940,1727754641322,-253.251594,0.00015753,2]
[339619941,1727754641333,-253.251594,0.00015753,2]
[339619942,1727754641346,-253.251594,0.00015753,2]
[339619943,1727754641357,-253.251594,0.00015753,2]
[339619944,1727754641369,-153.913571,0.00015753,2]
[339619945,1727754641380,-353.646602,0.00015753,2]
[339619946,1727754641393,-353.646602,0.00015753,2]
[339619947,1727754641404,-153.201995,0.00015753,2]
[339619948,1727754641415,-151.0,0.00015753,2]
[339619949,1727754641426,-153.201995,0.00015753,2]
[339619950,1727754641437,-2821.010515,0.00015753,2]
[339619951,1727754641448,-2821.010515,0.00015753,2]
[339619952,1727754641459,-151.0,0.00015762,2]
[339619953,1727754641471,-151.0,0.00015762,2]
[339619954,1727754641483,-151.0,0.00015762,2]
[339619955,1727754641495,-422.796574,0.00015762,2]
[339619956,1727754641506,-422.796574,0.00015762,2]
[339619957,1727754641517,-151.0,0.00015762,2]
[339619958,1727754641529,-151.0,0.00015762,2]
[339619959,1727754641541,-242.426973,0.00015762,2]
[339619960,1727754641552,-242.426973,0.00015762,2]
[339619961,1727754641563,-151.0,0.00015762,2]
[339619962,1727754641574,-151.0,0.00015762,2]
[339619963,1727754641584,-151.0,0.00015762,2]
[339619964,1727754641596,-151.128611,0.00015762,2]
[339619965,1727754641607,-151.0,0.00015762,2]
[339619966,1727754641618,-282.047831,0.00015762,2]
[339619967,1727754641630,-282.047831,0.00015762,2]
[339619968,1727754641640,-151.0,0.00015762,2]
[339619969,1727754641651,-574.682894,0.00015762,2]
[339619970,1727754641662,-574.682894,0.00015762,2]
[339619971,1727754641672,-253.251594,0.00015762,2]
[339619972,1727754641683,-253.251594,0.00015762,2]
[339619973,1727754641694,-353.646602,0.00015762,2]
[339619974,1727754641704,-353.646602,0.00015762,2]
[339619975,1727754641713,-153.201995,0.00015762,2]
[339619976,1727754641723,-151.0,0.00015762,2]
[339619977,1727754641732,-153.201995,0.00015762,2]
[339619978,1727754641742,-2821.010515,0.00015762,2]
[339619979,1727754641751,-2821.010515,0.00015762,2]
[339619980,1727754641761,-151.0,0.00015772,2]
[339619981,1727754641773,-163.77616,0.00015772,2]
[339619982,1727754641783,-1110.666251,0.00015772,2]
[339619983,1727754641793,-211.35513414,0.00015824,2]
[339619984,1727754641803,-151.0,0.00015908,2]
[339619985,1727754641812,-151.0,0.00015908,2]
[339619986,1727754641823,-151.0,0.00015908,2]
[339619987,1727754642093,-151.0,0.00015908,2]
[339619988,1727754642110,-282.047831,0.00015908,2]
[339619989,1727754642124,-282.047831,0.00015908,2]
[339619990,1727754642134,-574.682894,0.00015908,2]
[339619991,1727754642143,-574.682894,0.00015908,2]
[339619992,1727754642154,-253.251594,0.00015908,2]
[339619993,1727754642164,-253.251594,0.00015908,2]
[339619994,1727754642174,-353.646602,0.00015908,2]
[339619995,1727754642184,-353.646602,0.00015908,2]
[339619996,1727754642194,-153.201995,0.00015908,2]
[339619997,1727754642204,-153.201995,0.00015908,2]
[339619998,1727754642214,-2821.010515,0.00015908,2]
[339619999,1727754642224,-2821.010515,0.00015908,2]
[339620000,1727754642235,-470.89604725,0.00015939,2]
[339620001,1727754642249,-500.0,0.00015939,2]
[339620002,1727754642259,-500.0,0.00015939,2]
[339620003,1727754642268,-500.0,0.00015939,2]
[339620004,1727754642279,-500.0,0.00015939,2]
[339620005,1727754642289,-500.0,0.00015939,2]
[339620006,1727754642300,-500.0,0.00015939,2]
[339620007,1727754642311,-500.0,0.00015939,2]
[339620008,1727754642321,-350.0,0.00015939,2]
[339620009,1727754642331,-500.0,0.00015939,2]
[339620010,1727754642341,-500.0,0.00015939,2]
[339620011,1727754642351,-500.0,0.00015939,2]
[339620012,1727754642361,-591.57421365,0.00015939,2]
[339620013,1727754642371,-435.43284326,0.00015939,2]
[339620014,1727754642381,-500.0,0.00015939,2]
[339620015,1727754642391,-500.0,0.00015939,2]
[339620016,1727754642402,-500.0,0.00015939,2]
[339620017,1727754642412,-500.0,0.00015939,2]
[339620018,1727754642421,-500.0,0.00015939,2]
[339620019,1727754642432,-500.0,0.00015939,2]
[339620020,1727754642442,-500.0,0.00015939,2]
[339620021,1727754642452,-500.0,0.00015939,2]
[339620022,1727754642463,-500.0,0.00015939,2]
[339620023,1727754642473,-500.0,0.00015939,2]
[339620024,1727754642482,-500.0,0.00015939,2]
[339620025,1727754642492,-353.646602,0.00015969,2]
[339620026,1727754642502,-353.646602,0.00015969,2]
[339620027,1727754642511,-153.201995,0.00015969,2]
[339620028,1727754642520,-153.201995,0.00015969,2]
[339620029,1727754642529,-2821.010515,0.00015969,2]
[339620030,1727754642537,-2821.010515,0.00015969,2]
[339620031,1727754642547,-1110.666251,0.00015969,2]
[339620032,1727754642556,-353.646602,0.00015985,2]
[339620033,1727754642566,-353.646602,0.00015985,2]
[339620034,1727754642576,-353.646602,0.00015985,2]
[339620035,1727754642585,-353.646592,0.00015985,2]
[339620036,1727754642594,-153.201995,0.00015985,2]
[339620037,1727754642604,-153.201995,0.00015985,2]
[339620038,1727754642613,-153.201995,0.00015985,2]
[339620039,1727754642623,-153.202001,0.00015985,2]
[339620040,1727754642632,-2821.010515,0.00015985,2]
[339620041,1727754642641,-2821.010515,0.00015985,2]
[339620042,1727754642650,-2821.010515,0.00015985,2]
[339620043,1727754642660,-2821.010524,0.00015985,2]
[339620044,1727754642669,-16048.631327,0.00015986,2]
[339620045,1727754642678,-49061.9758227,0.00015986,2]
[339620046,1727754642687,-7067.94404438,0.00015995,2]
[339620047,1727754642696,-211.35513414,0.00015996,2]
[339620048,1727754642705,-151.0,0.00015996,2]
[339620049,1727754642714,-574.682894,0.00015996,2]
[339620050,1727754642724,-574.682894,0.00015996,2]
[339620051,1727754642733,-253.251594,0.00015996,2]
[339620052,1727754642744,-253.251594,0.00015996,2]
[339620053,1727754642753,-154.394769,0.00016025,2]
[339620054,1727754642763,-151.0,0.00016025,2]
[339620055,1727754642774,-422.796574,0.00016025,2]
[339620056,1727754642784,-422.796574,0.00016025,2]
[339620057,1727754642793,-151.0,0.00016025,2]
[339620058,1727754642803,-151.0,0.00016025,2]
[339620059,1727754642813,-242.426973,0.00016025,2]
[339620060,1727754642823,-242.426973,0.00016025,2]
[339620062,1727754642833,-151.0,0.00016025,2]
[339620065,1727754642843,-151.0,0.00016025,2]
[339620067,1727754642853,-256.661005,0.00016025,2]
[339620069,1727754642863,-151.0,0.00016025,2]
[339620071,1727754642872,-282.047831,0.00016025,2]
[339620072,1727754642882,-282.047831,0.00016025,2]
[339620073,1727754642891,-574.682894,0.00016025,2]
[339620074,1727754642901,-574.682894,0.00016025,2]
[339620075,1727754642913,-253.251594,0.00016025,2]
[339620076,1727754642922,-253.251594,0.00016025,2]
[339620077,1727754642931,-151.0,0.0001605,2]
[339620078,1727754642941,-154.0,0.0001606,2]
[339620079,1727754642951,-151.0,0.0001606,2]
[339620080,1727754642961,-151.0,0.0001606,2]
[339620081,1727754642971,-161.912026,0.0001606,2]
[339620082,1727754642980,-282.047831,0.0001606,2]
[339620083,1727754642989,-282.047831,0.0001606,2]
[339620084,1727754643000,-151.0,0.0001606,2]
[339620085,1727754643010,-1110.666251,0.00016167,2]
[339620086,1727754643020,-211.35513414,0.00016167,2]
[339620087,1727754643029,-1376.84603105,0.00016174,2]
[339620088,1727754643038,-574.682894,0.00016174,2]
[339620089,1727754643048,-574.682894,0.00016174,2]
[339620090,1727754643057,-253.251594,0.00016174,2]
[339620091,1727754643066,-253.251594,0.00016174,2]
[339620092,1727754643076,-151.0,0.00016307,2]
[339620093,1727754643084,-151.0,0.00016307,2]
[339620094,1727754643093,-242.426973,0.00016307,2]
[339620095,1727754643103,-242.426973,0.00016307,2]
[339620096,1727754643112,-284.014723,0.00016307,2]
[339620097,1727754643121,-151.0,0.00016307,2]
[339620098,1727754643132,-282.047831,0.00016307,2]
[339620099,1727754643141,-282.047831,0.00016307,2]
[339620100,1727754643150,-151.0,0.00016307,2]
[339620101,1727754643159,-1436.20917067,0.00016308,2]
[339620102,1727754643169,-500.0,0.00016317,2]
[339620103,1727754643178,-192.77045029,0.00016317,2]
[339620104,1727754643188,-202.11132138,0.00016317,2]
[339620105,1727754643197,-607.6290839,0.00016317,2]
[339620106,1727754643206,-500.0,0.00016317,2]
[339620107,1727754643216,-500.0,0.00016317,2]
[339620108,1727754643226,-239.20244176,0.00016317,2]
[339620109,1727754643235,-500.0,0.00016317,2]
[339620110,1727754643247,-500.0,0.00016317,2]
[339620111,1727754643257,-500.0,0.00016317,2]
[339620112,1727754643267,-500.0,0.00016317,2]
[339620113,1727754643276,-500.0,0.00016317,2]
[339620114,1727754643286,-159.80290745,0.00016317,2]
[339620115,1727754643296,-500.0,0.00016317,2]
[339620116,1727754643306,-151.0,0.00016317,2]
[339620117,1727754643315,-151.0,0.00016317,2]
[339620118,1727754643325,-151.0,0.00016317,2]
[339620119,1727754643334,-422.796574,0.00016317,2]
[339620120,1727754643344,-422.796574,0.00016317,2]
[339620121,1727754643353,-151.0,0.00016317,2]
[339620122,1727754643363,-282.047831,0.00016317,2]
[339620123,1727754643373,-282.047831,0.00016317,2]
[339620124,1727754643383,-574.682894,0.00016317,2]
[339620125,1727754643392,-574.682894,0.00016317,2]
[339620126,1727754643402,-253.251594,0.00016317,2]
[339620127,1727754643411,-253.251594,0.00016317,2]
[339620128,1727754643420,-16048.631327,0.00016318,2]
[339620129,1727754643430,-49061.9758227,0.00016318,2]
[339620130,1727754643439,-151.0,0.00016318,2]
[339620131,1727754643448,-282.047831,0.00016318,2]
[339620132,1727754643458,-282.047831,0.00016318,2]
[339620133,1727754643467,-151.0,0.00016318,2]
[339620134,1727754643476,-574.682894,0.00016318,2]
[339620135,1727754643486,-574.68289,0.00016318,2]
[339620136,1727754643498,-253.251594,0.00016318,2]
[339620137,1727754643508,-253.251584,0.00016318,2]
[339620138,1727754643517,-151.0,0.00016328,2]
[339620139,1727754643527,-151.0,0.00016328,2]
[339620140,1727754643536,-422.796574,0.00016328,2]
[339620141,1727754643546,-422.796574,0.00016328,2]
[339620142,1727754643556,-168.557882,0.00016328,2]
[339620143,1727754643566,-151.0,0.00016328,2]
[339620144,1727754643575,-242.426973,0.00016328,2]
[339620145,1727754643584,-242.426973,0.00016328,2]
[339620146,1727754643594,-151.0,0.00016328,2]
[339620147,1727754643604,-257.426985,0.00016328,2]
[339620148,1727754643613,-282.047831,0.00016328,2]